bitfinex-derivatives/quotes_BTCF0:USTF0_20250510
["timestamp","ask_amount","ask_price","bid_price","bid_amount"]
[1746917777222,0.2247678,103790.0,103780.0,1.05512311]
[1746917777421,0.34365397,103790.0,103780.0,0.93623694]
[1746917777627,0.40785397,103790.0,103780.0,0.93623694]
[1746917777919,0.6497678,103790.0,103780.0,0.57543694]
[1746917778321,0.6497678,103790.0,103780.0,0.40943694]
[1746917779313,0.6497678,103790.0,103780.0,0.37883694]
[1746917779721,0.6497678,103790.0,103780.0,0.18615054]
[1746917780218,0.76865397,103790.0,103780.0,0.37883694]
[1746917780421,0.6497678,103790.0,103780.0,0.18615054]
[1746917781223,0.76865397,103790.0,103780.0,0.18615054]
[1746917781822,0.6497678,103790.0,103780.0,0.18615054]
[1746917782024,0.76865397,103790.0,103780.0,0.18615054]
[1746917782524,0.76865397,103790.0,103780.0,0.08979751]
[1746917783316,0.6497678,103790.0,103780.0,0.08979751]
[1746917783528,0.76865397,103790.0,103780.0,0.08979751]
[1746917783725,0.6497678,103790.0,103780.0,0.08979751]
[1746917783927,0.6497678,103790.0,103780.0,0.12089751]
[1746917785326,0.76865397,103790.0,103780.0,0.12089751]
[1746917786828,0.40785397,103790.0,103780.0,0.12089751]
[1746917787023,0.2889678,103790.0,103780.0,0.12089751]
[1746917787219,0.40785397,103790.0,103780.0,0.12089751]
[1746917787625,0.2889678,103790.0,103780.0,0.12089751]
[1746917791829,0.36698954,103790.0,103780.0,0.12089751]
[1746917792726,0.2889678,103790.0,103780.0,0.12089751]
[1746917793033,0.36698954,103790.0,103780.0,0.12089751]
[1746917793428,0.2889678,103790.0,103780.0,0.12089751]
[1746917793628,0.36698954,103790.0,103780.0,0.12089751]
[1746917794138,0.36698954,103790.0,103780.0,0.31358391]
[1746917794335,0.2889678,103790.0,103780.0,0.31358391]
[1746917794528,0.36698954,103790.0,103780.0,0.31358391]
[1746917794728,0.36698954,103790.0,103780.0,0.12089751]
[1746917795236,0.36698954,103790.0,103780.0,0.08979751]
[1746917796329,0.53298954,103790.0,103780.0,0.08979751]
[1746917797138,0.36698954,103790.0,103780.0,0.08979751]
[1746917798138,0.53298954,103790.0,103780.0,0.08979751]
[1746917799139,0.36698954,103790.0,103780.0,0.08979751]
[1746917799339,0.36698954,103790.0,103780.0,0.12019751]
[1746917800235,0.2889678,103790.0,103780.0,0.12019751]
[1746917800431,0.36698954,103790.0,103780.0,0.12019751]
[1746917801542,0.2889678,103790.0,103780.0,0.12019751]
[1746917801742,0.36698954,103790.0,103780.0,0.12019751]
[1746917802734,0.2889678,103790.0,103780.0,0.12019751]
[1746917802934,0.36698954,103790.0,103780.0,0.12019751]
[1746917803645,0.2889678,103790.0,103780.0,0.12019751]
[1746917803942,0.36698954,103790.0,103780.0,0.12019751]
[1746917806044,0.36698954,103790.0,103780.0,0.31288391]
[1746917806942,0.2889678,103790.0,103780.0,0.31288391]
[1746917810146,0.36698954,103790.0,103780.0,0.31288391]
[1746917810648,0.36698954,103790.0,103780.0,0.12019751]
[1746917811639,0.2889678,103790.0,103780.0,0.12019751]
[1746917812041,0.36698954,103790.0,103780.0,0.12019751]
[1746917813149,0.2889678,103790.0,103780.0,0.12019751]
[1746917813551,0.36698954,103790.0,103780.0,0.12019751]
[1746917815047,0.2889678,103790.0,103780.0,0.12019751]
[1746917815443,0.36698954,103790.0,103780.0,0.12019751]
[1746917816659,0.2889678,103790.0,103780.0,0.12019751]
[1746917816949,0.36698954,103790.0,103780.0,0.12019751]
[1746917817749,0.6497678,103790.0,103780.0,0.12019751]
[1746917818056,0.72778954,103790.0,103780.0,0.12019751]
[1746917820855,0.72778954,103790.0,103780.0,0.08979751]
[1746917821348,0.6497678,103790.0,103780.0,0.05779751]
[1746917821554,0.72778954,103790.0,103780.0,0.05779751]
[1746917822057,0.192705,103770.0,103760.0,0.33882435]
[1746917822247,0.63152674,103770.0,103760.0,0.41172435]
[1746917822447,0.72542674,103770.0,103760.0,0.34716191]
[1746917822655,0.72542674,103770.0,103760.0,0.25080888]
[1746917823455,0.72642674,103770.0,103760.0,0.25880888]
[1746917824959,0.72642674,103770.0,103760.0,0.1138]
[1746917826154,0.72642674,103770.0,103760.0,0.12836555]
[1746917826949,0.648405,103770.0,103760.0,0.12836555]
[1746917827154,0.648405,103770.0,103760.0,0.06629516]
[1746917827155,0.89242674,103770.0,103760.0,0.06629516]
[1746917827457,0.1927235,103760.0,103750.0,0.19605068]
[1746917827650,0.1927421,103750.0,103740.0,0.45108688]
[1746917827846,0.72856384,103750.0,103740.0,0.46108688]
[1746917828063,0.6505421,103750.0,103740.0,0.21863413]
[1746917828259,0.72856384,103750.0,103740.0,0.21863413]
[1746917828650,0.6505421,103750.0,103740.0,0.21863413]
[1746917828850,0.72856384,103750.0,103740.0,0.21863413]
[1746917829358,0.36876384,103750.0,103740.0,0.23504127]
[1746917830245,0.36976384,103750.0,103740.0,0.25527748]
[1746917830451,0.2917421,103750.0,103740.0,0.25527748]
[1746917830650,0.36976384,103750.0,103740.0,0.25527748]
[1746917830868,0.36976384,103750.0,103740.0,0.22980781]
[1746917831760,0.36976384,103750.0,103740.0,0.21980781]
[1746917831959,0.36976384,103750.0,103740.0,0.2293855]
[1746917833465,0.2917421,103750.0,103740.0,0.2293855]
[1746917833961,0.36976384,103750.0,103740.0,0.2293855]
[1746917834260,0.2917421,103750.0,103740.0,0.2293855]
[1746917834458,0.36976384,103750.0,103740.0,0.2293855]
[1746917835757,0.2917421,103750.0,103740.0,0.2293855]
[1746917835958,0.36976384,103750.0,103740.0,0.2293855]
[1746917836464,0.2917421,103750.0,103740.0,0.2293855]
[1746917836665,0.36976384,103750.0,103740.0,0.21980781]
[1746917838867,0.36976384,103750.0,103740.0,0.22100092]
[1746917839364,0.36976384,103750.0,103740.0,0.2211971]
[1746917840769,0.36976384,103750.0,103740.0,0.22132429]
[1746917841161,0.2917421,103750.0,103740.0,0.22132429]
[1746917841362,0.80858558,103750.0,103740.0,0.09385269]
[1746917841562,0.80858558,103750.0,103710.0,0.14896202]
[1746917841563,0.0481901,103740.0,103710.0,0.14896202]
[1746917841866,0.27081964,103720.0,103710.0,0.4953522]
[1746917842263,0.38074138,103720.0,103710.0,0.2453522]
[1746917842464,0.2246979,103720.0,103710.0,0.15896202]
[1746917842665,0.30271964,103720.0,103710.0,0.16696202]
[1746917842865,0.36741964,103720.0,103710.0,0.25350553]
[1746917843370,0.36841964,103720.0,103710.0,0.25150553]
[1746917843565,0.36941964,103720.0,103710.0,0.25050553]
[1746917843761,0.4104547,103720.0,103710.0,0.25050553]
[1746917844166,0.4104547,103720.0,103710.0,0.10549665]
[1746917844765,0.4104547,103720.0,103710.0,0.13869665]
[1746917847675,0.4104547,103720.0,103710.0,0.33151305]
[1746917847868,0.4104547,103720.0,103710.0,0.13869665]
[1746917848371,0.4104547,103720.0,103710.0,0.33260881]
[1746917848773,0.4104547,103720.0,103710.0,0.13979241]
[1746917849775,0.2913979,103720.0,103710.0,0.0280489]
[1746917849973,0.7712547,103720.0,103710.0,0.0180489]
[1746917850371,0.7712547,103720.0,103710.0,0.01819338]
[1746917850774,0.7712547,103720.0,103710.0,0.01827656]
[1746917851074,0.9372547,103720.0,103710.0,0.01827656]
[1746917852079,0.7712547,103720.0,103710.0,0.01827656]
[1746917853371,0.6521979,103720.0,103710.0,0.01827656]
[1746917853574,0.7712547,103720.0,103710.0,0.01827656]
[1746917854083,0.6521979,103720.0,103710.0,0.01827656]
[1746917854481,0.7712547,103720.0,103710.0,0.01827656]
[1746917855886,0.6521979,103720.0,103710.0,0.01827656]
[1746917856186,0.2913979,103720.0,103710.0,0.11167656]
[1746917856382,0.2913979,103720.0,103710.0,0.11182104]
[1746917856682,0.6521979,103720.0,103710.0,0.11182104]
[1746917856881,0.2913979,103720.0,103710.0,0.30463744]
[1746917857074,0.2913979,103720.0,103710.0,0.27782104]
[1746917857276,0.4104547,103720.0,103710.0,0.27782104]
[1746917857476,0.4104547,103720.0,103710.0,0.27807955]
[1746917858285,0.2913979,103720.0,103710.0,0.11207955]
[1746917858473,0.4104547,103720.0,103710.0,0.11233806]
[1746917858676,0.2913979,103720.0,103710.0,0.11233806]
[1746917858875,0.4104547,103720.0,103710.0,0.11259657]
[1746917859380,0.4104547,103720.0,103710.0,0.11285508]
[1746917859786,0.4104547,103720.0,103710.0,0.11299998]
[1746917861080,0.2913979,103720.0,103710.0,0.11299998]
[1746917861380,0.4104547,103720.0,103710.0,0.11299998]
[1746917862288,0.2913979,103720.0,103710.0,0.11299998]
[1746917862479,0.4104547,103720.0,103710.0,0.11299998]
[1746917864882,0.4104547,103720.0,103710.0,0.12299998]
[1746917865375,0.4104547,103720.0,103710.0,0.12338717]
[1746917865782,0.36953322,103720.0,103710.0,0.12338717]
[1746917866591,0.36953322,103720.0,103710.0,0.12377366]
[1746917866892,0.36953322,103720.0,103710.0,0.12416015]
[1746917867288,0.2913979,103720.0,103710.0,0.12416015]
[1746917867488,0.36953322,103720.0,103710.0,0.12416015]
[1746917867683,0.36953322,103720.0,103710.0,0.1243234]
[1746917868583,0.2913979,103720.0,103710.0,0.1243234]
[1746917868787,0.36953322,103720.0,103710.0,0.1243234]
[1746917869085,0.36953322,103720.0,103710.0,0.1143234]
[1746917870590,0.2913979,103720.0,103710.0,0.1143234]
[1746917870796,0.36953322,103720.0,103710.0,0.1143234]
[1746917872788,0.2582979,103720.0,103710.0,0.42355786]
[1746917872993,0.33643322,103720.0,103710.0,0.42355786]
[1746917873192,0.33643322,103720.0,103710.0,0.58955786]
[1746917873398,0.33643322,103720.0,103710.0,0.39674146]
[1746917873696,0.33643322,103720.0,103710.0,0.39713143]
[1746917873900,0.2582979,103720.0,103710.0,0.39713143]
[1746917874097,0.36673322,103720.0,103710.0,0.39713143]
[1746917874293,0.36673322,103720.0,103710.0,0.23113143]
[1746917876600,0.36673322,103720.0,103710.0,0.23152135]
[1746917877698,0.36673322,103720.0,103710.0,0.23191127]
[1746917878100,0.36673322,103720.0,103710.0,0.23206488]
[1746917879104,0.36673322,103720.0,103710.0,0.39806488]
[1746917879605,0.2885979,103720.0,103710.0,0.39806488]
[1746917879905,0.36673322,103720.0,103710.0,0.39806488]
[1746917880309,0.36673322,103720.0,103710.0,0.23206488]
[1746917882207,0.2885979,103720.0,103710.0,0.42488128]
[1746917882405,0.36673322,103720.0,103710.0,0.23206488]
[1746917882705,0.72753322,103720.0,103710.0,0.23206488]
[1746917883206,0.6493979,103720.0,103710.0,0.23206488]
[1746917883409,0.72753322,103720.0,103710.0,0.23206488]
[1746917883702,0.6493979,103720.0,103710.0,0.23245339]
[1746917883909,0.72753322,103720.0,103710.0,0.23245339]
[1746917884207,0.72753322,103720.0,103710.0,0.23284255]
[1746917884394,0.5874979,103720.0,103710.0,0.50379427]
[1746917884599,0.2266979,103720.0,103710.0,0.78645895]
[1746917885206,0.30483322,103720.0,103710.0,0.95245895]
[1746917885706,0.30483322,103720.0,103710.0,0.95284862]
[1746917886002,0.30483322,103720.0,103710.0,0.9530047]
[1746917886210,0.33753322,103720.0,103710.0,0.4262047]
[1746917886403,0.33753322,103720.0,103710.0,0.7870047]
[1746917887503,0.2896979,103720.0,103710.0,0.7870047]
[1746917887903,0.36783322,103720.0,103710.0,0.7870047]
[1746917888197,0.36783322,103720.0,103710.0,0.9530047]
[1746917889010,0.2896979,103720.0,103710.0,0.9530047]
[1746917889209,0.36783322,103720.0,103710.0,0.4262047]
[1746917889409,0.36783322,103720.0,103710.0,0.7870047]
[1746917889813,0.36783322,103720.0,103710.0,0.4262047]
[1746917890813,0.2896979,103720.0,103710.0,0.4262047]
[1746917891112,0.36783322,103720.0,103710.0,0.4262047]
[1746917892008,0.80676854,103720.0,103710.0,0.04357024]
[1746917892205,0.97276854,103720.0,103710.0,0.02357024]
[1746917893014,0.97276854,103720.0,103710.0,0.03813501]
[1746917893311,0.8164979,103720.0,103710.0,0.03813501]
[1746917893508,0.97276854,103720.0,103710.0,0.03813501]
[1746917893711,0.97276854,103720.0,103710.0,0.03843249]
[1746917894715,0.8164979,103720.0,103710.0,0.03843249]
[1746917895014,0.97276854,103720.0,103710.0,0.03843249]
[1746917896315,0.8164979,103720.0,103710.0,0.03843249]
[1746917896516,0.97276854,103720.0,103710.0,0.03843249]
[1746917898417,0.97476854,103720.0,103710.0,0.02543249]
[1746917898714,0.97576854,103720.0,103710.0,0.02843249]
[1746917900808,0.97176854,103720.0,103710.0,0.02843249]
[1746917901113,1.05090386,103720.0,103710.0,0.02843249]
[1746917901314,0.97276854,103720.0,103710.0,0.02843249]
[1746917901514,1.05090386,103720.0,103710.0,0.02843249]
[1746917901709,0.97276854,103720.0,103710.0,0.02843249]
[1746917902017,0.97276854,103720.0,103710.0,0.01386772]
[1746917902317,1.05090386,103720.0,103710.0,0.01386772]
[1746917902821,0.192835,103700.0,103690.0,0.0916]
[1746917903008,0.192835,103700.0,103690.0,0.1116]
[1746917903009,0.70990564,103700.0,103690.0,0.1116]
[1746917903209,0.80450564,103700.0,103690.0,0.1116]
[1746917904112,0.80550564,103700.0,103690.0,0.1116]
[1746917904319,0.80650564,103700.0,103690.0,0.1116]
[1746917904908,0.80650564,103700.0,103690.0,0.1261224]
[1746917906321,0.80650564,103700.0,103690.0,0.02]
[1746917906512,0.1928536,103690.0,103680.0,0.24530964]
[1746917906712,0.6474536,103690.0,103680.0,0.25530964]
[1746917906914,0.72558892,103690.0,103680.0,0.11030076]
[1746917907517,0.80372424,103690.0,103680.0,0.01395428]
[1746917907712,0.72658892,103690.0,103680.0,0.01395428]
[1746917908220,0.72758892,103690.0,103680.0,0.05861131]
[1746917908719,0.72758892,103690.0,103680.0,0.09101131]
[1746917909520,0.6494536,103690.0,103680.0,0.09101131]
[1746917909820,0.72758892,103690.0,103680.0,0.09101131]
[1746917910014,0.72758892,103690.0,103680.0,0.12201131]
[1746917910215,0.72758892,103690.0,103680.0,0.28801131]
[1746917910717,0.2567536,103690.0,103680.0,0.65881131]
[1746917910924,0.2567536,103690.0,103680.0,0.83712648]
[1746917911228,0.1948536,103690.0,103680.0,1.20170776]
[1746917912924,0.1948536,103690.0,103680.0,1.12357244]
[1746917913127,0.1948536,103690.0,103680.0,1.20170776]
[1746917913827,0.1948536,103690.0,103680.0,1.12357244]
[1746917914023,0.1948536,103690.0,103680.0,1.31266592]
[1746917916121,0.1948536,103690.0,103680.0,1.19357244]
[1746917916327,0.1948536,103690.0,103680.0,1.31266592]
[1746917916927,0.1948536,103690.0,103680.0,1.19357244]
[1746917917519,0.1948536,103690.0,103680.0,1.38677244]
[1746917918523,0.1948536,103690.0,103680.0,1.50586592]
[1746917920821,0.1948536,103690.0,103680.0,1.38677244]
[1746917921021,0.1948536,103690.0,103680.0,1.6508748]
[1746917921422,0.1948536,103690.0,103680.0,1.53178132]
[1746917921627,0.2277536,103690.0,103680.0,1.46178132]
[1746917921819,0.34684708,103690.0,103680.0,1.26890912]
[1746917922019,0.34684708,103690.0,103680.0,0.90810912]
[1746917922020,0.37924708,103690.0,103680.0,0.90810912]
[1746917922222,0.2909536,103690.0,103680.0,0.64566316]
[1746917922426,0.2909536,103690.0,103680.0,1.00646316]
[1746917922823,0.41004708,103690.0,103680.0,1.00646316]
[1746917923128,0.41004708,103690.0,103680.0,1.02745428]
[1746917924130,0.77084708,103690.0,103680.0,0.66665428]
[1746917925618,0.6517536,103690.0,103680.0,0.85952648]
[1746917925823,0.6209536,103690.0,103680.0,0.85952648]
[1746917926023,0.6209536,103690.0,103680.0,0.95597244]
[1746917927129,0.2601536,103690.0,103680.0,1.31677244]
[1746917928924,0.2591536,103690.0,103680.0,1.31677244]
[1746917929433,0.2601536,103690.0,103680.0,1.12390024]
[1746917929633,0.2601536,103690.0,103680.0,1.31677244]
[1746917929835,0.37924708,103690.0,103680.0,1.31677244]
[1746917930736,0.37924708,103690.0,103680.0,1.12390024]
[1746917930929,0.37924708,103690.0,103680.0,1.31677244]
[1746917931436,0.2601536,103690.0,103680.0,1.31677244]
[1746917931627,0.37924708,103690.0,103680.0,1.31677244]
[1746917933841,0.37924708,103690.0,103680.0,1.12390024]
[1746917934036,0.37924708,103690.0,103680.0,0.74075428]
[1746917934226,0.37924708,103690.0,103680.0,0.36475428]
[1746917934434,0.74004708,103690.0,103680.0,0.00395428]
[1746917934730,0.74004708,103690.0,103680.0,0.01849903]
[1746917935131,1.59044708,103690.0,103680.0,0.01849903]
[1746917935635,1.60521604,103690.0,103680.0,0.01849903]
[1746917936741,1.59044708,103690.0,103680.0,0.01849903]
[1746917937037,1.4713536,103690.0,103680.0,0.01849903]
[1746917937342,1.59044708,103690.0,103680.0,0.01849903]
[1746917937533,1.4713536,103690.0,103680.0,0.01849903]
[1746917937740,1.59044708,103690.0,103680.0,0.01849903]
[1746917938140,1.42444708,103690.0,103680.0,0.01849903]
[1746917938333,0.74004708,103690.0,103680.0,0.01849903]
[1746917940649,0.75425741,103690.0,103680.0,0.01849903]
[1746917940839,0.63516393,103690.0,103680.0,0.01849903]
[1746917941038,0.75425741,103690.0,103680.0,0.01849903]
[1746917945344,0.78725741,103690.0,103680.0,0.01849903]
[1746917947338,0.78725741,103690.0,103680.0,3e-08]
[1746917947839,0.90635089,103690.0,103680.0,3e-08]
[1746917948637,0.66816393,103690.0,103680.0,3e-08]
[1746917948937,0.78725741,103690.0,103680.0,3e-08]
[1746917949542,0.90635089,103690.0,103680.0,3e-08]
[1746917950948,1.10203089,103690.0,103680.0,3e-08]
[1746917951140,1.10403089,103690.0,103680.0,3e-08]
[1746917951445,1.10703089,103690.0,103680.0,3e-08]
[1746917952552,0.98793741,103690.0,103680.0,3e-08]
[1746917953539,1.10703089,103690.0,103680.0,3e-08]
[1746917954447,0.98793741,103690.0,103680.0,3e-08]
[1746917956950,1.10703089,103690.0,103680.0,3e-08]
[1746917957752,1.02526201,103690.0,103680.0,3e-08]
[1746917960356,0.86884393,103690.0,103680.0,3e-08]
[1746917960650,1.02526201,103690.0,103680.0,3e-08]
[1746917964352,0.1928722,103680.0,103670.0,0.0637]
[1746917964546,0.77439028,103680.0,103670.0,0.0637]
[1746917965055,0.77439028,103680.0,103670.0,0.2297]
[1746917965363,0.80769028,103680.0,103670.0,0.2297]
[1746917966460,1.76065932,103680.0,103670.0,0.1971]
[1746917966765,0.1929095,103660.0,103650.0,0.17457719]
[1746917967063,0.71012758,103660.0,103650.0,0.18504172]
[1746917967263,0.74082758,103660.0,103650.0,0.18504172]
[1746917967451,0.77172758,103660.0,103650.0,0.21574172]
[1746917967657,0.6153095,103660.0,103650.0,0.21574172]
[1746917967861,0.77172758,103660.0,103650.0,0.21574172]
[1746917968065,0.80592758,103660.0,103650.0,0.21574172]
[1746917968261,0.80592758,103660.0,103650.0,0.38174172]
[1746917968865,0.6173095,103660.0,103650.0,0.38174172]
[1746917969066,0.69551854,103660.0,103650.0,0.38174172]
[1746917969458,0.77372758,103660.0,103650.0,0.23673284]
[1746917969661,0.77372758,103660.0,103650.0,0.26853284]
[1746917969858,0.77372758,103660.0,103650.0,0.31359497]
[1746917970463,0.77372758,103660.0,103650.0,0.29751756]
[1746917970673,0.77372758,103660.0,103650.0,0.27751756]
[1746917971979,0.77372758,103660.0,103650.0,0.28697009]
[1746917972182,0.77272758,103660.0,103650.0,0.28697009]
[1746917972380,0.77372758,103660.0,103650.0,0.28697009]
[1746917972985,0.77272758,103660.0,103650.0,0.28697009]
[1746917973282,0.77372758,103660.0,103650.0,0.28697009]
[1746917974174,0.80632758,103660.0,103650.0,0.28697009]
[1746917975880,0.6499095,103660.0,103650.0,0.28697009]
[1746917976183,0.69551854,103660.0,103650.0,0.28697009]
[1746917976378,0.33471854,103660.0,103650.0,0.28697009]
[1746917976881,0.2256095,103660.0,103650.0,0.28697009]
[1746917977074,0.30381854,103660.0,103650.0,0.28697009]
[1746917978885,0.30381854,103660.0,103650.0,0.30697009]
[1746917979386,0.2256095,103660.0,103650.0,0.30697009]
[1746917979584,0.30381854,103660.0,103650.0,0.30697009]
[1746917981779,0.33381854,103660.0,103650.0,0.30697009]
[1746917983588,0.41202758,103660.0,103650.0,0.30697009]
[1746917986588,0.2556095,103660.0,103650.0,0.30697009]
[1746917986794,0.33381854,103660.0,103650.0,0.66777009]
[1746917987291,0.33381854,103660.0,103650.0,0.86069819]
[1746917987484,0.33381854,103660.0,103650.0,0.66777009]
[1746917989295,0.2556095,103660.0,103650.0,0.66777009]
[1746917989491,0.33381854,103660.0,103650.0,0.66777009]
[1746917989794,0.33381854,103660.0,103650.0,0.30697009]
[1746917989984,0.33381854,103660.0,103650.0,0.66777009]
[1746917990185,0.33381854,103660.0,103650.0,0.30697009]
[1746917990387,0.69461854,103660.0,103650.0,0.30697009]
[1746917990785,0.80462758,103660.0,103650.0,0.30697009]
[1746917991796,0.72641854,103660.0,103650.0,0.30697009]
[1746917992390,0.36561854,103660.0,103650.0,0.30697009]
[1746917992601,0.36561854,103660.0,103650.0,0.66777009]
[1746917993193,0.2874095,103660.0,103650.0,0.86069819]
[1746917993393,0.2556095,103660.0,103650.0,0.95717206]
[1746917993599,0.33381854,103660.0,103650.0,0.95717206]
[1746917994699,0.2556095,103660.0,103650.0,0.95717206]
[1746917995090,0.33381854,103660.0,103650.0,0.95717206]
[1746917995288,0.36701854,103660.0,103650.0,0.95717206]
[1746917995597,0.36701854,103660.0,103650.0,0.76424396]
[1746917995989,0.44522758,103660.0,103650.0,0.57457009]
[1746917996301,0.36701854,103660.0,103650.0,0.60617009]
[1746917996494,0.44522758,103660.0,103650.0,0.60617009]
[1746917996797,0.44522758,103660.0,103650.0,0.57457009]
[1746917998897,0.44522758,103660.0,103650.0,0.56511756]
[1746917999090,0.44522758,103660.0,103650.0,0.57459197]
[1746917999291,0.44522758,103660.0,103650.0,0.20431756]
[1746918000093,0.36701854,103660.0,103650.0,0.20431756]
[1746918000300,0.44522758,103660.0,103650.0,0.20431756]
[1746918000691,0.80602758,103660.0,103650.0,0.20431756]
[1746918001095,0.72781854,103660.0,103650.0,0.20431756]
[1746918001293,0.36701854,103660.0,103650.0,0.20431756]
[1746918001497,0.44522758,103660.0,103650.0,0.20431756]
[1746918001799,0.72781854,103660.0,103650.0,0.20431756]
[1746918002003,0.36701854,103660.0,103650.0,0.20431756]
[1746918002299,0.2888095,103660.0,103650.0,0.5032864]
[1746918002503,0.2556095,103660.0,103650.0,0.5975864]
[1746918002999,0.33381854,103660.0,103650.0,0.5975864]
[1746918003497,0.2556095,103660.0,103650.0,0.9583864]
[1746918005202,0.2870095,103660.0,103650.0,0.9583864]
[1746918005702,0.36521854,103660.0,103650.0,0.9583864]
[1746918006401,0.2870095,103660.0,103650.0,0.9583864]
[1746918007302,0.2256095,103660.0,103650.0,0.9583864]
[1746918007804,0.002,103660.0,103650.0,1.20659544]
[1746918007999,0.1949095,103660.0,103650.0,1.20659544]
[1746918008403,0.2268095,103660.0,103650.0,1.20659544]
[1746918008804,0.2268095,103660.0,103650.0,1.17659544]
[1746918009105,0.2268095,103660.0,103650.0,1.0983864]
[1746918010006,0.2268095,103660.0,103650.0,1.24339528]
[1746918010903,0.2268095,103660.0,103650.0,1.32160432]
[1746918011802,0.2268095,103660.0,103650.0,1.24339528]
[1746918012006,0.2268095,103660.0,103650.0,1.32160432]
[1746918012403,0.2268095,103660.0,103650.0,1.24339528]
[1746918014508,0.69781854,103660.0,103650.0,0.68966718]
[1746918014808,0.80632758,103660.0,103650.0,0.68966718]
[1746918015111,0.72811854,103660.0,103650.0,0.68966718]
[1746918015705,0.6499095,103660.0,103650.0,0.68966718]
[1746918015911,0.72811854,103660.0,103650.0,0.68966718]
[1746918016711,0.36731854,103660.0,103650.0,1.05046718]
[1746918017010,0.2891095,103660.0,103650.0,1.05046718]
[1746918017205,0.36731854,103660.0,103650.0,1.05046718]
[1746918017406,0.36731854,103660.0,103650.0,0.98846718]
[1746918018098,0.36731854,103660.0,103650.0,0.8434583]
[1746918018303,0.36731854,103660.0,103650.0,0.4826583]
[1746918019013,0.36731854,103660.0,103650.0,0.5132583]
[1746918019705,0.36731854,103660.0,103650.0,0.5451583]
[1746918021814,0.2891095,103660.0,103650.0,0.5451583]
[1746918022007,0.2268095,103660.0,103650.0,1.34709544]
[1746918022202,0.2268095,103660.0,103650.0,1.2688864]
[1746918022407,0.2268095,103660.0,103650.0,1.34709544]
[1746918023413,0.2268095,103660.0,103650.0,1.17709544]
[1746918025213,0.002,103660.0,103650.0,1.27356744]
[1746918025409,0.002,103660.0,103650.0,1.37356744]
[1746918025811,0.1949095,103660.0,103650.0,1.37356744]
[1746918026013,0.1949095,103660.0,103650.0,1.38356744]
[1746918026810,0.1949095,103660.0,103650.0,1.55356744]
[1746918027413,0.002,103660.0,103650.0,1.55356744]
[1746918027616,0.1949095,103660.0,103650.0,1.74738291]
[1746918027924,0.1949095,103660.0,103650.0,1.78830049]
[1746918029523,0.002,103660.0,103650.0,1.78830049]
[1746918031626,0.002,103660.0,103650.0,2.18742711]
[1746918032325,0.002,103660.0,103650.0,2.43742711]
[1746918032716,0.002,103660.0,103650.0,2.58458405]
[1746918033416,0.002,103660.0,103650.0,2.23458405]
[1746918034123,0.002,103660.0,103650.0,2.23658405]
[1746918034626,0.0329,103660.0,103650.0,2.33658405]
[1746918035721,0.3215237,103670.0,103660.0,0.1929095]
[1746918035722,0.04811,103670.0,103660.0,0.1929095]
[1746918035923,0.04811,103670.0,103660.0,1.76305612]
[1746918035924,0.08041,103670.0,103660.0,1.76305612]
[1746918036229,0.08041,103670.0,103660.0,2.02552012]
[1746918036525,0.08041,103670.0,103660.0,2.22199399]
[1746918036727,0.3064739,103690.0,103680.0,0.1928722]
[1746918036929,0.3064739,103690.0,103680.0,0.78279882]
[1746918037119,0.3064739,103690.0,103680.0,1.01139882]
[1746918037428,0.3064739,103690.0,103680.0,1.46866339]
[1746918038228,0.2251536,103690.0,103680.0,1.61829001]
[1746918038428,0.0323,103690.0,103680.0,1.70916339]
[1746918038725,0.1928502,103700.0,103690.0,0.1928536]
[1746918039022,0.1928502,103700.0,103690.0,1.2839936]
[1746918039023,0.2133002,103700.0,103690.0,1.2839936]
[1746918039220,0.2460002,103700.0,103690.0,1.56912022]
[1746918039427,0.2460002,103700.0,103690.0,1.66456618]
[1746918039627,0.2460002,103700.0,103690.0,1.66256618]
[1746918040232,0.2470002,103700.0,103690.0,1.66356618]
[1746918040824,0.2480002,103700.0,103690.0,1.66456618]
[1746918041230,0.2480002,103700.0,103690.0,1.54543956]
[1746918041424,0.2480002,103700.0,103690.0,1.66456618]
[1746918041832,0.2275502,103700.0,103690.0,1.66456618]
[1746918042033,0.2602502,103700.0,103690.0,1.54543956]
[1746918042234,0.2602502,103700.0,103690.0,1.66456618]
[1746918043633,0.2602502,103700.0,103690.0,1.54543956]
[1746918043833,0.2602502,103700.0,103690.0,1.66456618]
[1746918044424,0.37937682,103700.0,103690.0,0.65524596]
[1746918044824,0.2602502,103700.0,103690.0,0.84809956]
[1746918045524,0.37937682,103700.0,103690.0,0.198]
[1746918046031,0.74017682,103700.0,103690.0,0.198]
[1746918046227,0.74017682,103700.0,103690.0,0.032]
[1746918047728,0.6210502,103700.0,103690.0,0.032]
[1746918047929,0.74017682,103700.0,103690.0,0.032]
[1746918048237,0.90617682,103700.0,103690.0,0.032]
[1746918049625,0.90617682,103700.0,103690.0,0.002]
[1746918049937,0.7870502,103700.0,103690.0,0.002]
[1746918050232,0.74017682,103700.0,103690.0,0.002]
[1746918052137,1.42457682,103700.0,103690.0,0.002]
[1746918053438,1.06377682,103700.0,103690.0,0.002]
[1746918057241,1.42457682,103700.0,103690.0,0.002]
[1746918057630,1.52101282,103700.0,103690.0,0.002]
[1746918059240,1.4018862,103700.0,103690.0,0.002]
[1746918059433,1.52101282,103700.0,103690.0,0.002]
[1746918061543,1.42457682,103700.0,103690.0,0.002]
[1746918062533,1.3054502,103700.0,103690.0,0.002]
[1746918062743,1.42457682,103700.0,103690.0,0.002]
[1746918063745,1.3054502,103700.0,103690.0,0.002]
[1746918063948,1.42457682,103700.0,103690.0,0.002]
[1746918069749,1.46182158,103700.0,103690.0,0.002]
[1746918070140,1.3363502,103700.0,103690.0,0.002]
[1746918070341,1.49272158,103700.0,103690.0,0.002]
[1746918072952,1.57090727,103700.0,103690.0,0.002]
[1746918075555,1.49272158,103700.0,103690.0,0.002]
[1746918075955,1.57090727,103700.0,103690.0,0.002]
[1746918076453,1.49272158,103700.0,103690.0,0.002]
[1746918078156,1.49272158,103700.0,103690.0,0.168]
[1746918078455,1.49272158,103700.0,103690.0,0.2007]
[1746918079551,1.49272158,103700.0,103690.0,0.2327]
[1746918079945,1.49272158,103700.0,103690.0,0.2633]
[1746918080858,1.3363502,103700.0,103690.0,0.2633]
[1746918081047,1.49272158,103700.0,103690.0,0.2633]
[1746918082150,1.49272158,103700.0,103690.0,0.2007]
[1746918083955,1.49272158,103700.0,103690.0,0.2611]
[1746918087058,1.49272158,103700.0,103660.0,0.68242296]
[1746918087059,0.1928908,103670.0,103660.0,0.14698827]
[1746918087357,0.63187649,103670.0,103660.0,0.21008827]
[1746918087561,0.27107649,103670.0,103660.0,0.21008827]
[1746918087867,0.67286926,103670.0,103660.0,0.21008827]
[1746918088163,0.67286926,103670.0,103660.0,0.37608827]
[1746918088364,0.70586926,103670.0,103660.0,0.41308827]
[1746918088665,0.70586926,103670.0,103660.0,0.2661]
[1746918089158,0.34506926,103670.0,103660.0,0.2661]
[1746918090163,0.37556926,103670.0,103660.0,0.2661]
[1746918090663,0.2563908,103670.0,103660.0,0.2661]